[Event "FIDE World Rapid-ch Open 2018"]
[White "Antipov, Mikhail Al."]
[Black "Yilmaz, Mustafa"]
[Site "St. Petersburg"]
[Round "10.40"]
[Annotator "ChessBase"]
[Result "1-0"]
[Date "2018.12.27"]
[WhiteElo "2589"]
[BlackElo "2636"]
[PlyCount "75"]
[TimeControl "900+10"]

1. e4 {[%emt 0:0:0]} c5 {[%emt 0:0:0]} 2. Nf3 {[%emt 0:0:0]} d6 {[%emt 0:0:0]} 3. Bb5+ {[%emt 0:0:0]} Nd7 {[%emt 0:0:0]} 4. Ba4 {[%emt 0:0:0]} Ngf6 {[%emt 0:0:25]} 5. 0-0 {[%emt 0:0:0]} a6 {[%emt 0:0:27]} 6. c4 {[%emt 0:0:2]
} e6 {[%emt 0:0:9]} 7. Nc3 {[%emt 0:0:16]} Be7 {[%emt 0:0:19]
} 8. d4 {[%emt 0:1:30]} cxd4 {[%emt 0:0:3]} 9. Qxd4 {[%emt 0:0:4]} 0-0 {[%emt 0:0:14]
} 10. h3 {[%emt 0:0:24]} b6 {[%emt 0:2:10]} 11. Bg5 {[%emt 0:0:0]} Bb7 {[%emt 0:0:52]} 12. Rad1 {[%emt 0:0:19]} h6 {[%emt 0:0:59]} 13. Bh4 {[%emt 0:0:22]} Nc5 {[%emt 0:2:11]} 14. Bc2 {[%emt 0:0:4]} Rc8 {[%emt 0:1:10]
} 15. Bg3 {[%emt 0:4:19]} e5 {[%emt 0:1:49]} 16. Qe3 {[%emt 0:0:0]} Qc7 {[%emt 0:0:4]} 17. Nh4 {[%emt 0:1:10]} Nh5 {[%emt 0:0:30]} 18. Nf5 {[%emt 0:0:27]} Rfd8 {[%emt 0:1:12]} 19. Qf3 {[%emt 0:0:53]} Nxg3 {[%emt 0:0:2]
} 20. Qxg3 {[%emt 0:0:2]} Bf6 {[%emt 0:0:25]} 21. Nxh6+ {[%emt 0:0:5]
} Kf8 {[%emt 0:0:9]} 22. Ng4 {[%emt 0:0:14]} Ne6 {[%emt 0:0:0]} 23. Ne3 {[%emt 0:0:54]} Nf4 {[%emt 0:1:4]} 24. Qf3 {[%emt 0:0:17]} Qc5 {[%emt 0:0:27]} 25. Bb3 {[%emt 0:1:11]} Ne6 {[%emt 0:1:40]} 26. Ned5 {[%emt 0:0:12]
} Nd4 {[%emt 0:0:10]} 27. Qh5 {[%emt 0:1:6]} g6 {[%emt 0:0:0]} 28. Qh7 {[%emt 0:0:14]} Bg7 {[%emt 0:0:8]} 29. Na4 {[%emt 0:0:56]} Qa5 {[%emt 0:0:28]} 30. Naxb6 {[%emt 0:0:6]} Rb8 {[%emt 0:0:11]} 31. f4 {[%emt 0:1:14]
} exf4 {[%emt 0:0:59]} 32. Nxf4 {[%emt 0:0:39]} Ne2+ {[%emt 0:0:0]} 33. Nxe2 {[%emt 0:0:12]} Qxb6+ {[%emt 0:0:3]} 34. Kh1 {[%emt 0:0:0]} Rd7 {[%emt 0:0:6]} 35. Nf4 {[%emt 0:0:21]} Bxe4 {[%emt 0:0:7]} 36. Ne6+ {[%emt 0:0:22]} Ke7 {[%emt 0:0:7]} 37. Qxg7 {[%emt 0:0:31]} Qe3 {[%emt 0:0:11]
} 38. Qxf7# {[%emt 0:0:3]} 1-0

[Event "FIDE World Rapid-ch Open 2018"]
[White "Kazhgaleyev, Murtas"]
[Black "Vallejo Pons, Francisco"]
[Site "St. Petersburg"]
[Round "10.41"]
[Annotator "ChessBase"]
[Result "1/2-1/2"]
[Date "2018.12.27"]
[WhiteElo "2587"]
[BlackElo "2695"]
[PlyCount "28"]
[TimeControl "900+10"]

1. d4 {[%emt 0:0:1]} d5 {[%emt 0:0:0]} 2. c4 {[%emt 0:0:2]} dxc4 {[%emt 0:0:0]
} 3. Nf3 {[%emt 0:0:8]} Nf6 {[%emt 0:0:0]} 4. e3 {[%emt 0:0:0]} e6 {[%emt 0:0:0]} 5. Bxc4 {[%emt 0:0:2]} c5 {[%emt 0:0:0]} 6. 0-0 {[%emt 0:0:5]
} cxd4 {[%emt 0:0:2]} 7. exd4 {[%emt 0:0:7]} Be7 {[%emt 0:0:0]} 8. Nc3 {[%emt 0:0:9]} 0-0 {[%emt 0:0:3]} 9. Bg5 {[%emt 0:0:15]} Nc6 {[%emt 0:0:7]
} 10. a3 {[%emt 0:0:29]} b6 {[%emt 0:0:2]} 11. Qd3 {[%emt 0:0:0]} Bb7 {[%emt 0:0:10]} 12. Rad1 {[%emt 0:0:8]} h6 {[%emt 0:0:51]} 13. Bxf6 {[%emt 0:3:4]} Bxf6 {[%emt 0:0:2]} 14. d5 {[%emt 0:0:1]} Na5 {[%emt 0:1:28]
} 1/2-1/2

[Event "FIDE World Rapid-ch Open 2018"]
[White "Inarkiev, Ernesto"]
[Black "Ghaem Maghami, Ehsan"]
[Site "St. Petersburg"]
[Round "10.42"]
[Annotator "ChessBase"]
[Result "1-0"]
[Date "2018.12.27"]
[WhiteElo "2693"]
[BlackElo "2537"]
[PlyCount "91"]
[TimeControl "900+10"]

1. c4 {[%emt 0:0:0]} Nf6 {[%emt 0:0:10]} 2. Nc3 {[%emt 0:0:0]} e6 {[%emt 0:0:6]
} 3. e4 {[%emt 0:0:4]} d5 {[%emt 0:0:3]} 4. cxd5 {[%emt 0:0:0]} exd5 {[%emt 0:0:2]} 5. e5 {[%emt 0:0:1]} Ne4 {[%emt 0:0:4]} 6. d4 {[%emt 0:0:1]
} Bb4 {[%emt 0:0:53]} 7. Qa4+ {[%emt 0:0:1]} Nc6 {[%emt 0:0:0]} 8. Bb5 {[%emt 0:0:1]} Bd7 {[%emt 0:1:54]} 9. Nge2 {[%emt 0:0:3]} a6 {[%emt 0:1:28]
} 10. Bxc6 {[%emt 0:0:18]} Bxc3+ {[%emt 0:0:3]} 11. bxc3 {[%emt 0:0:3]
} Bxc6 {[%emt 0:0:3]} 12. Qc2 {[%emt 0:0:3]} Bb5 {[%emt 0:0:0]} 13. f3 {[%emt 0:0:5]} Ng5 {[%emt 0:0:46]} 14. Ng3 {[%emt 0:2:5]} Ne6 {[%emt 0:2:28]} 15. h4 {[%emt 0:0:20]} c5 {[%emt 0:0:22]} 16. Nf5 {[%emt 0:0:0]} 0-0 {[%emt 0:0:24]} 17. Bg5 {[%emt 0:1:8]} Qd7 {[%emt 0:1:43]} 18. a4 {[%emt 0:2:47]} Bc4 19. Rh3 cxd4 {[%emt 0:3:30]} 20. cxd4 {[%emt 0:1:16]} f6 {[%emt 0:0:46]} 21. exf6 {[%emt 0:0:31]} gxf6 {[%emt 0:0:11]} 22. Bh6 {[%emt 0:0:36]
} Rfe8 {[%emt 0:0:16]} 23. Kf2 Ng5 24. hxg5 {[%emt 0:3:0]} Re2+ {[%emt 0:0:12]} 25. Qxe2 {[%emt 0:0:1]} Bxe2 26. Ne3 Bd3 {[%emt 0:0:0]} 27. Ng4 {[%emt 0:0:11]} Qc6 {[%emt 0:1:10]} 28. Re1 {[%emt 0:0:1]} Bf5 {[%emt 0:0:5]} 29. Rg3 {[%emt 0:0:50]} Bxg4 {[%emt 0:0:27]} 30. gxf6 {[%emt 0:0:5]
} Kf7 {[%emt 0:0:0]} 31. Rxg4 {[%emt 0:0:1]} Re8 {[%emt 0:0:0]} 32. Rc1 {[%emt 0:0:49]} Qxa4 {[%emt 0:0:4]} 33. Rc7+ {[%emt 0:0:10]} Kxf6 {[%emt 0:0:4]} 34. Kg3 {[%emt 0:1:53]} Qb4 {[%emt 0:0:27]} 35. Rxh7 {[%emt 0:0:14]
} a5 {[%emt 0:0:11]} 36. Bf4 {[%emt 0:0:29]} Qe1+ {[%emt 0:0:0]} 37. Kh2 {[%emt 0:0:3]} a4 {[%emt 0:0:9]} 38. Bg3 {[%emt 0:0:10]} Qd2 {[%emt 0:0:9]} 39. Bh4+ {[%emt 0:0:42]} Kf5 {[%emt 0:0:19]} 40. Rf7+ {[%emt 0:1:26]
} Ke6 {[%emt 0:0:1]} 41. Rxb7 {[%emt 0:0:1]} Kd6 {[%emt 0:0:0]} 42. Rg6+ {[%emt 0:0:28]} Re6 {[%emt 0:0:1]} 43. Rb6+ {[%emt 0:0:9]} Kd7 {[%emt 0:0:18]} 44. Rbxe6 {[%emt 0:0:7]} Qf4+ {[%emt 0:0:23]} 45. g3 {[%emt 0:0:12]
} Qd2+ {[%emt 0:0:8]} 46. Kh3 {[%emt 0:0:1]} 1-0

[Event "FIDE World Rapid-ch Open 2018"]
[White "Sakaev, Konstantin"]
[Black "Abdusattorov, Nodirbek"]
[Site "St. Petersburg"]
[Round "10.43"]
[Annotator "ChessBase"]
[Result "1-0"]
[Date "2018.12.27"]
[WhiteElo "2584"]
[BlackElo "2546"]
[PlyCount "163"]
[TimeControl "900+10"]

1. d4 {[%emt 0:0:0]} Nf6 {[%emt 0:0:0]} 2. c4 {[%emt 0:0:0]} e6 {[%emt 0:0:0]} 3. Nf3 {[%emt 0:0:0]} b6 {[%emt 0:0:0]} 4. a3 {[%emt 0:0:0]} Ba6 {[%emt 0:0:4]} 5. Qc2 {[%emt 0:0:0]} Bb7 {[%emt 0:0:4]} 6. Nc3 {[%emt 0:0:0]} c5 {[%emt 0:0:1]} 7. e4 {[%emt 0:0:2]} cxd4 {[%emt 0:0:2]} 8. Nxd4 {[%emt 0:0:1]} Bc5 {[%emt 0:0:1]} 9. Nb3 {[%emt 0:0:4]} Nc6 {[%emt 0:0:1]
} 10. f3 {[%emt 0:0:9]} 0-0 {[%emt 0:0:38]} 11. Nxc5 {[%emt 0:0:0]} bxc5 {[%emt 0:0:2]} 12. Be3 {[%emt 0:0:10]} Nd4 {[%emt 0:0:15]} 13. Qd1 {[%emt 0:2:59]} e5 {[%emt 0:0:5]} 14. b4 {[%emt 0:0:41]} d6 {[%emt 0:0:0]} 15. Bd3 {[%emt 0:0:3]} Nh5 {[%emt 0:0:43]} 16. 0-0 {[%emt 0:0:18]} Nf4 {[%emt 0:0:16]} 17. Bxf4 {[%emt 0:0:44]} exf4 {[%emt 0:0:2]} 18. Rb1 {[%emt 0:0:25]
} Bc6 {[%emt 0:1:19]} 19. b5 {[%emt 0:0:30]} Bb7 {[%emt 0:0:0]} 20. Ne2 {[%emt 0:0:11]} Qf6 {[%emt 0:1:6]} 21. Qd2 {[%emt 0:1:3]} Nxe2+ {[%emt 0:0:53]} 22. Bxe2 {[%emt 0:0:2]} Rfe8 {[%emt 0:0:3]} 23. a4 {[%emt 0:0:27]
} Re6 {[%emt 0:1:46]} 24. a5 {[%emt 0:0:33]} Rb8 {[%emt 0:0:0]} 25. Rfd1 {[%emt 0:0:24]} h5 {[%emt 0:0:29]} 26. Rb3 {[%emt 0:1:23]} h4 {[%emt 0:0:56]} 27. Rd3 {[%emt 0:3:52]} Rd8 {[%emt 0:0:16]} 28. a6 {[%emt 0:0:0]} Ba8 {[%emt 0:0:32]} 29. h3 {[%emt 0:0:40]} Qg5 {[%emt 0:0:36]} 30. Bf1 {[%emt 0:0:5]} Qf6 {[%emt 0:2:59]} 31. Qa5 {[%emt 0:0:36]} Qe7 {[%emt 0:1:18]
} 32. Rb3 {[%emt 0:0:37]} Rb8 {[%emt 0:1:40]} 33. b6 {[%emt 0:0:0]} axb6 {[%emt 0:0:27]} 34. Rxb6 {[%emt 0:0:4]} Re8 {[%emt 0:1:57]} 35. Qd2 {[%emt 0:0:58]} Qg5 {[%emt 0:0:31]} 36. Rxd6 {[%emt 0:0:21]} Kh7 {[%emt 0:0:3]
} 37. a7 {[%emt 0:0:56]} Qe5 {[%emt 0:0:10]} 38. Rd8 {[%emt 0:0:0]} R6e7 {[%emt 0:0:35]} 39. Rxe8 {[%emt 0:0:35]} Rxe8 {[%emt 0:0:1]} 40. Qd7 {[%emt 0:0:59]} Re7 {[%emt 0:0:21]} 41. Qd8 {[%emt 0:0:1]} Rxa7 {[%emt 0:0:1]
} 42. Qxh4+ {[%emt 0:0:3]} Kg6 {[%emt 0:0:0]} 43. Qg4+ {[%emt 0:0:17]
} Kh7 {[%emt 0:0:10]} 44. Kh2 {[%emt 0:0:9]} Bc6 {[%emt 0:0:0]} 45. Qh4+ {[%emt 0:0:3]} Kg6 {[%emt 0:0:10]} 46. Qg4+ {[%emt 0:0:11]} Kh7 {[%emt 0:0:4]} 47. Rd8 {[%emt 0:0:10]} Ra8 {[%emt 0:0:34]} 48. Qh4+ {[%emt 0:0:12]
} Kg6 {[%emt 0:0:1]} 49. Qg4+ {[%emt 0:0:7]} Kh7 {[%emt 0:0:0]} 50. Rxa8 {[%emt 0:0:8]} Bxa8 {[%emt 0:0:1]} 51. Qc8 {[%emt 0:0:7]} Qa1 {[%emt 0:0:4]} 52. Bd3 {[%emt 0:0:9]} Qd4 {[%emt 0:0:22]} 53. Qf5+ {[%emt 0:0:33]
} Kg8 {[%emt 0:0:3]} 54. Qc8+ {[%emt 0:0:1]} Kh7 {[%emt 0:0:0]} 55. Qxa8 {[%emt 0:0:16]} Qxd3 {[%emt 0:0:1]} 56. Qd5 {[%emt 0:0:1]} Qe3 {[%emt 0:0:12]} 57. Qxf7 {[%emt 0:0:5]} Kh6 {[%emt 0:0:31]} 58. h4 {[%emt 0:0:18]
} Qc1 {[%emt 0:0:18]} 59. h5 {[%emt 0:0:10]} Kh7 {[%emt 0:0:0]} 60. Qg6+ {[%emt 0:0:17]} Kh8 {[%emt 0:0:4]} 61. Qe8+ {[%emt 0:0:8]} Kh7 {[%emt 0:0:1]} 62. Qg6+ {[%emt 0:0:1]} Kh8 {[%emt 0:0:0]} 63. h6 {[%emt 0:0:4]
} gxh6 {[%emt 0:0:1]} 64. Qxh6+ {[%emt 0:0:3]} Kg8 {[%emt 0:0:0]} 65. Qg5+ Kf7 66. Qxc5 {[%emt 0:0:8]} Ke6 {[%emt 0:0:14]} 67. Qd5+ {[%emt 0:0:3]
} Ke7 {[%emt 0:0:1]} 68. c5 {[%emt 0:0:7]} Qc3 {[%emt 0:0:0]} 69. Qg5+ {[%emt 0:0:15]} Ke8 {[%emt 0:0:8]} 70. Qh5+ {[%emt 0:0:12]} Ke7 {[%emt 0:0:4]} 71. Qg5+ {[%emt 0:0:18]} Ke8 {[%emt 0:0:1]} 72. Kh3 {[%emt 0:0:19]
} Qh8+ {[%emt 0:0:46]} 73. Kg4 {[%emt 0:0:4]} Qb2 {[%emt 0:0:0]} 74. Qg6+ {[%emt 0:0:25]} Kd8 {[%emt 0:0:9]} 75. Qg8+ {[%emt 0:0:10]} Ke7 {[%emt 0:0:4]} 76. Kh3 {[%emt 0:0:17]} Qc1 {[%emt 0:0:30]} 77. Qg5+ {[%emt 0:0:6]
} Ke8 {[%emt 0:0:2]} 78. Qe5+ {[%emt 0:0:3]} Kf7 {[%emt 0:0:0]} 79. Kg4 {[%emt 0:0:9]} Qg1 {[%emt 0:0:10]} 80. Qxf4+ {[%emt 0:0:3]} Kg8 {[%emt 0:0:5]} 81. Qg5+ {[%emt 0:0:2]} Kf7 {[%emt 0:0:2]} 82. g3 {[%emt 0:0:3]
} 1-0

[Event "FIDE World Rapid-ch Open 2018"]
[White "Sarana, Alexey"]
[Black "Vokhidov, Shamsiddin"]
[Site "St. Petersburg"]
[Round "10.44"]
[Annotator "ChessBase"]
[Result "1-0"]
[Date "2018.12.27"]
[WhiteElo "2618"]
[BlackElo "2480"]
[PlyCount "167"]
[TimeControl "900+10"]

1. d4 {[%emt 0:0:0]} d5 {[%emt 0:0:0]} 2. Nf3 {[%emt 0:0:0]} c6 {[%emt 0:0:0]} 3. c4 {[%emt 0:0:0]} e6 {[%emt 0:0:0]} 4. Nbd2 {[%emt 0:0:0]} Nf6 {[%emt 0:0:6]} 5. g3 {[%emt 0:0:0]} b6 {[%emt 0:0:28]} 6. Bg2 {[%emt 0:0:0]} Bb7 {[%emt 0:0:2]} 7. 0-0 {[%emt 0:0:4]} Nbd7 {[%emt 0:0:2]} 8. Qc2 {[%emt 0:0:17]} c5 {[%emt 0:0:12]} 9. cxd5 {[%emt 0:0:36]} exd5 {[%emt 0:0:0]} 10. dxc5 {[%emt 0:0:26]} bxc5 {[%emt 0:0:15]} 11. e4 {[%emt 0:1:8]} Be7 {[%emt 0:1:32]} 12. e5 {[%emt 0:0:35]} Ne4 {[%emt 0:1:15]} 13. Nxe4 {[%emt 0:0:11]
} dxe4 {[%emt 0:0:1]} 14. Nd2 {[%emt 0:0:6]} Nxe5 {[%emt 0:0:0]} 15. Bxe4 {[%emt 0:0:41]} Qd7 {[%emt 0:3:36]} 16. Re1 {[%emt 0:2:21]} Ng6 {[%emt 0:0:1]} 17. Bxb7 {[%emt 0:2:7]} Qxb7 {[%emt 0:0:2]} 18. h4 {[%emt 0:0:33]
} Nf8 {[%emt 0:2:3]} 19. Nc4 {[%emt 0:2:44]} Ne6 {[%emt 0:0:0]} 20. Qa4+ {[%emt 0:0:1]} Qd7 {[%emt 0:1:28]} 21. Qxd7+ {[%emt 0:0:3]} Kxd7 {[%emt 0:0:1]} 22. Ne5+ {[%emt 0:0:1]} Ke8 {[%emt 0:0:1]} 23. Be3 {[%emt 0:0:9]
} Rc8 {[%emt 0:2:29]} 24. Rad1 {[%emt 0:0:23]} f6 {[%emt 0:0:0]} 25. Nc4 {[%emt 0:0:23]} Rc7 {[%emt 0:0:17]} 26. Rd3 {[%emt 0:1:57]} Kf7 {[%emt 0:0:11]} 27. Ra3 {[%emt 0:0:9]} Rd8 {[%emt 0:0:28]} 28. Ra6 {[%emt 0:0:4]
} Nd4 {[%emt 0:0:7]} 29. Kg2 {[%emt 0:0:2]} Nc2 {[%emt 0:0:0]} 30. Re2 {[%emt 0:0:1]} Nb4 {[%emt 0:0:1]} 31. Ra4 {[%emt 0:0:6]} Rd1 {[%emt 0:0:10]} 32. Bd2 {[%emt 0:1:11]} Rd7 {[%emt 0:0:28]} 33. Bc3 {[%emt 0:0:25]
} Nd5 {[%emt 0:0:5]} 34. Ne3 {[%emt 0:0:24]} Nxc3 {[%emt 0:0:0]} 35. bxc3 {[%emt 0:0:1]} R1d3 {[%emt 0:0:16]} 36. c4 {[%emt 0:0:17]} Bd6 {[%emt 0:0:1]} 37. Ra5 {[%emt 0:0:32]} g6 {[%emt 0:1:10]} 38. Ra6 {[%emt 0:1:14]
} Be5 {[%emt 0:0:29]} 39. Nd5 {[%emt 0:0:1]} Rb7 {[%emt 0:0:0]} 40. Rc6 {[%emt 0:0:4]} Bd4 {[%emt 0:0:5]} 41. Rc8 {[%emt 0:0:6]} Ra3 {[%emt 0:0:7]} 42. g4 {[%emt 0:0:48]} f5 {[%emt 0:0:11]} 43. g5 {[%emt 0:0:0]} Ra4 {[%emt 0:0:4]} 44. Rc2 {[%emt 0:0:59]} Ke6 {[%emt 0:0:17]} 45. Re2+ {[%emt 0:0:24]} Kd6 {[%emt 0:0:41]} 46. Rd8+ {[%emt 0:0:36]} Rd7 {[%emt 0:0:1]
} 47. Rxd7+ {[%emt 0:0:6]} Kxd7 {[%emt 0:0:2]} 48. Re7+ {[%emt 0:0:1]
} Kd6 {[%emt 0:0:14]} 49. Rxh7 {[%emt 0:0:2]} Rxa2 {[%emt 0:0:0]} 50. Rh6 {[%emt 0:0:27]} Rxf2+ {[%emt 0:0:12]} 51. Kg3 {[%emt 0:0:1]
} Rc2 {[%emt 0:0:12]} 52. Rxg6+ {[%emt 0:0:1]} Ke5 {[%emt 0:0:1]} 53. Ne7 {[%emt 0:0:31]} Ke4 {[%emt 0:0:12]} 54. Nc6 {[%emt 0:0:8]} Bf2+ {[%emt 0:0:0]} 55. Kh3 {[%emt 0:0:1]} Rc3+ {[%emt 0:0:3]} 56. Kg2 {[%emt 0:0:1]} Bxh4 {[%emt 0:0:4]} 57. Re6+ {[%emt 0:0:0]} Kf4 {[%emt 0:0:1]} 58. g6 {[%emt 0:0:1]
} Rc2+ {[%emt 0:0:18]} 59. Kf1 {[%emt 0:0:4]} Rc1+ {[%emt 0:0:0]} 60. Kg2 {[%emt 0:0:1]} Rc2+ {[%emt 0:0:1]} 61. Kf1 {[%emt 0:0:2]} Rc1+ {[%emt 0:0:27]} 62. Kg2 {[%emt 0:0:1]} Rc2+ {[%emt 0:0:2]} 63. Kf1 {[%emt 0:0:0]
} Rc3 {[%emt 0:0:4]} 64. g7 {[%emt 0:0:34]} Rc1+ {[%emt 0:0:0]} 65. Ke2 {[%emt 0:0:3]} Re1+ {[%emt 0:0:11]} 66. Kd3 {[%emt 0:0:12]} Rxe6 {[%emt 0:0:12]} 67. g8=Q {[%emt 0:0:0]} Rxc6 {[%emt 0:0:10]} 68. Qd5 {[%emt 0:0:3]
} Rb6 {[%emt 0:0:15]} 69. Qxc5 {[%emt 0:0:4]} Bf6 {[%emt 0:0:0]} 70. Qe3+ {[%emt 0:0:11]} Kg4 {[%emt 0:0:2]} 71. Qe2+ {[%emt 0:0:1]} Kg3 {[%emt 0:0:5]} 72. Qe1+ {[%emt 0:0:10]} Kg4 {[%emt 0:0:5]} 73. c5 {[%emt 0:0:15]
} Rb3+ {[%emt 0:0:3]} 74. Kc4 {[%emt 0:0:1]} Rf3 {[%emt 0:0:0]} 75. c6 {[%emt 0:0:26]} Rf4+ {[%emt 0:0:2]} 76. Kd5 {[%emt 0:0:10]} Rd4+ {[%emt 0:0:20]} 77. Ke6 {[%emt 0:0:6]} Re4+ {[%emt 0:0:8]} 78. Qxe4+ {[%emt 0:0:2]} fxe4 {[%emt 0:0:1]} 79. Kxf6 {[%emt 0:0:3]} e3 {[%emt 0:0:0]} 80. c7 {[%emt 0:0:1]} e2 {[%emt 0:0:11]} 81. c8=Q+ {[%emt 0:0:2]} Kf3 {[%emt 0:0:1]} 82. Qf5+ {[%emt 0:0:2]} Ke3 {[%emt 0:0:2]} 83. Qe5+ {[%emt 0:0:1]
} Kd2 {[%emt 0:0:2]} 84. Qd4+ {[%emt 0:0:1]} 1-0

[Event "FIDE World Rapid-ch Open 2018"]
[White "Van Foreest, Jorden"]
[Black "Khismatullin, Denis"]
[Site "St. Petersburg"]
[Round "10.45"]
[Annotator "ChessBase"]
[Result "1-0"]
[Date "2018.12.27"]
[WhiteElo "2614"]
[BlackElo "2621"]
[PlyCount "105"]
[TimeControl "900+10"]

1. e4 {[%emt 0:0:0]} d6 {[%emt 0:0:0]} 2. d4 {[%emt 0:0:0]} Nf6 {[%emt 0:0:0]} 3. Nc3 {[%emt 0:0:0]} e5 {[%emt 0:0:0]} 4. Nf3 {[%emt 0:0:1]} Nbd7 {[%emt 0:0:0]} 5. Bc4 {[%emt 0:0:5]} Be7 {[%emt 0:0:0]} 6. a4 {[%emt 0:0:4]
} 0-0 {[%emt 0:0:0]} 7. 0-0 {[%emt 0:0:4]} c6 {[%emt 0:0:0]
} 8. h3 {[%emt 0:0:10]} exd4 {[%emt 0:0:24]} 9. Qxd4 {[%emt 0:1:1]} Nc5 {[%emt 0:0:42]
} 10. Re1 {[%emt 0:0:3]} Be6 {[%emt 0:0:49]} 11. Bf4 {[%emt 0:0:0]} d5 {[%emt 0:2:57]} 12. exd5 {[%emt 0:0:15]} cxd5 {[%emt 0:0:2]} 13. Ba2 {[%emt 0:0:21]} Nce4 {[%emt 0:1:7]} 14. Nxe4 {[%emt 0:0:43]} dxe4 {[%emt 0:2:21]
} 15. Qxd8 {[%emt 0:1:34]} Raxd8 {[%emt 0:0:9]} 16. Bxe6 {[%emt 0:1:43]
} fxe6 {[%emt 0:0:2]} 17. Ng5 {[%emt 0:1:13]} Nd5 {[%emt 0:0:0]} 18. Nxe6 {[%emt 0:0:3]} Nxf4 {[%emt 0:0:38]} 19. Nxd8 {[%emt 0:0:3]} Rxd8 {[%emt 0:1:34]} 20. Rxe4 {[%emt 0:0:3]} Ng6 {[%emt 0:0:1]} 21. Rae1 {[%emt 0:0:18]
} Kf7 {[%emt 0:0:4]} 22. g3 {[%emt 0:0:21]} Rd5 {[%emt 0:0:0]} 23. Kg2 {[%emt 0:0:16]} Bf6 {[%emt 0:0:26]} 24. Rb4 {[%emt 0:0:58]} b6 {[%emt 0:0:18]} 25. Re2 {[%emt 0:0:15]} Ne7 {[%emt 0:0:52]} 26. Rb5 {[%emt 0:0:3]
} Rxb5 {[%emt 0:0:41]} 27. axb5 {[%emt 0:0:2]} Nf5 {[%emt 0:0:0]} 28. c4 {[%emt 0:0:55]} Nd4 {[%emt 0:0:33]} 29. Re3 {[%emt 0:0:1]} Nc2 {[%emt 0:1:1]} 30. Re4 {[%emt 0:0:31]} Nb4 {[%emt 0:0:18]} 31. Re2 {[%emt 0:1:11]
} Nd3 {[%emt 0:0:38]} 32. b3 {[%emt 0:0:21]} Nc1 {[%emt 0:0:0]} 33. Re3 {[%emt 0:0:38]} Bd4 {[%emt 0:0:3]} 34. Rf3+ {[%emt 0:0:21]} Ke6 {[%emt 0:0:1]} 35. Kf1 {[%emt 0:0:2]} Ke5 {[%emt 0:1:5]} 36. b4 {[%emt 0:1:19]
} Ke4 {[%emt 0:0:39]} 37. Ra3 {[%emt 0:0:30]} Nd3 {[%emt 0:0:0]} 38. Rxa7 {[%emt 0:0:14]} Nxb4 {[%emt 0:0:8]} 39. Ke2 {[%emt 0:0:3]} Bf6 {[%emt 0:0:16]} 40. Rd7 {[%emt 0:0:36]} Ke5 {[%emt 0:0:13]} 41. Ke3 {[%emt 0:2:19]
} Nc2+ {[%emt 0:0:10]} 42. Kd3 {[%emt 0:0:9]} Nb4+ {[%emt 0:0:0]} 43. Ke3 {[%emt 0:0:6]} Nc2+ {[%emt 0:0:4]} 44. Kd2 {[%emt 0:0:10]} Nb4 {[%emt 0:0:24]} 45. c5 {[%emt 0:1:24]} bxc5 {[%emt 0:0:4]} 46. b6 {[%emt 0:0:2]
} Ke6 {[%emt 0:0:5]} 47. b7 {[%emt 0:0:2]} Na6 {[%emt 0:0:0]} 48. Rc7 {[%emt 0:0:3]} Nb8 {[%emt 0:0:19]} 49. Rxc5 {[%emt 0:0:39]} Kd7 {[%emt 0:0:10]} 50. Kd3 {[%emt 0:0:5]} Na6 {[%emt 0:0:10]} 51. Rc8 {[%emt 0:0:24]
} Be5 {[%emt 0:0:2]} 52. Ke4 {[%emt 0:0:1]} Bc7 {[%emt 0:0:0]} 53. Rg8 {[%emt 0:0:2]} 1-0

[Event "FIDE World Rapid-ch Open 2018"]
[White "Aronian, Levon"]
[Black "Gabrielian, Artur"]
[Site "St. Petersburg"]
[Round "10.46"]
[Annotator "ChessBase"]
[Result "1-0"]
[Date "2018.12.27"]
[WhiteElo "2765"]
[BlackElo "2499"]
[PlyCount "109"]
[TimeControl "900+10"]

1. d4 {[%emt 0:0:0]} Nf6 {[%emt 0:0:0]} 2. Bf4 {[%emt 0:0:0]} g6 {[%emt 0:0:0]
} 3. Nc3 {[%emt 0:0:0]} d5 {[%emt 0:0:6]} 4. Nb5 {[%emt 0:0:0]} Na6 {[%emt 0:0:14]} 5. e3 {[%emt 0:0:2]} c6 {[%emt 0:0:12]} 6. Nc3 {[%emt 0:0:2]
} Nc7 {[%emt 0:0:35]} 7. h3 {[%emt 0:0:6]} Bg7 {[%emt 0:0:2]
} 8. Nf3 {[%emt 0:0:2]} 0-0 {[%emt 0:0:2]} 9. Be2 {[%emt 0:0:22]} Bf5 {[%emt 0:4:18]
} 10. 0-0 {[%emt 0:0:43]} Ne4 {[%emt 0:0:2]} 11. Nxe4 {[%emt 0:0:36]
} Bxe4 {[%emt 0:0:19]} 12. Nd2 {[%emt 0:0:24]} Bf5 {[%emt 0:0:0]} 13. Bh2 {[%emt 0:0:8]} a5 {[%emt 0:0:58]} 14. c4 {[%emt 0:0:20]} Be6 {[%emt 0:0:12]
} 15. Qb3 {[%emt 0:0:30]} Qc8 {[%emt 0:0:34]} 16. Rac1 {[%emt 0:0:56]
} Rd8 {[%emt 0:0:25]} 17. Rfd1 {[%emt 0:1:11]} Ne8 {[%emt 0:0:0]} 18. Qa3 {[%emt 0:0:44]} Nd6 {[%emt 0:0:51]} 19. cxd5 {[%emt 0:0:19]} Bxd5 {[%emt 0:0:8]} 20. Bg4 {[%emt 0:0:2]} Be6 {[%emt 0:0:48]} 21. Bf3 {[%emt 0:0:2]
} Qd7 {[%emt 0:0:8]} 22. Qa4 {[%emt 0:0:49]} h5 {[%emt 0:0:0]} 23. Rc5 {[%emt 0:0:30]} Qe8 {[%emt 0:0:27]} 24. a3 {[%emt 0:1:33]} Bf5 {[%emt 0:0:58]} 25. Rdc1 {[%emt 0:0:42]} Nb5 {[%emt 0:0:17]} 26. Nc4 {[%emt 0:0:53]
} Be6 {[%emt 0:0:57]} 27. Ne5 {[%emt 0:1:7]} Ra6 {[%emt 0:0:0]} 28. Be2 {[%emt 0:0:28]} Rd5 {[%emt 0:0:31]} 29. Nd3 {[%emt 0:0:30]} Ra8 30. Rxd5 {[%emt 0:0:16]} Bxd5 {[%emt 0:1:2]} 31. Nf4 {[%emt 0:0:16]} Nd6 {[%emt 0:0:32]
} 32. Nxd5 {[%emt 0:0:33]} cxd5 {[%emt 0:0:1]} 33. Qb3 {[%emt 0:0:13]
} Rc8 {[%emt 0:0:12]} 34. Rc5 {[%emt 0:0:21]} Ne4 {[%emt 0:0:0]} 35. Rc2 {[%emt 0:0:59]} a4 {[%emt 0:0:44]} 36. Qb5 {[%emt 0:0:14]} Qd8 {[%emt 0:1:11]} 37. Qxa4 {[%emt 0:0:22]} Rxc2 {[%emt 0:0:2]} 38. Qxc2 {[%emt 0:0:2]
} Qa5 {[%emt 0:0:12]} 39. Qc1 {[%emt 0:0:23]} Bh6 {[%emt 0:0:0]} 40. Bd3 {[%emt 0:0:14]} h4 {[%emt 0:0:11]} 41. Kf1 {[%emt 0:0:32]} Kg7 {[%emt 0:0:16]} 42. Ke2 {[%emt 0:0:47]} e6 {[%emt 0:0:12]} 43. Qc2 {[%emt 0:0:0]} Nf6 {[%emt 0:0:10]} 44. Qc5 {[%emt 0:0:22]} Qa4 {[%emt 0:0:10]} 45. Be5 {[%emt 0:0:20]} Qb3 {[%emt 0:0:4]} 46. Qc2 {[%emt 0:0:39]} Qa2 {[%emt 0:0:2]
} 47. f4 {[%emt 0:0:18]} g5 {[%emt 0:0:1]} 48. Kf3 {[%emt 0:0:0]} b6 {[%emt 0:0:23]} 49. g4 {[%emt 0:0:49]} hxg3 {[%emt 0:0:1]} 50. Kxg3 {[%emt 0:0:2]} b5 {[%emt 0:0:23]} 51. Kf3 {[%emt 0:0:2]} b4 {[%emt 0:0:0]} 52. fxg5 {[%emt 0:0:13]} Bxg5 {[%emt 0:0:2]} 53. Qg2 {[%emt 0:0:2]
} Kh6 {[%emt 0:0:8]} 54. h4 {[%emt 0:0:2]} Ne4 {[%emt 0:0:24]} 55. hxg5+ {[%emt 0:0:6]
} 1-0

[Event "FIDE World Rapid-ch Open 2018"]
[White "Dreev, Aleksey"]
[Black "Popov, Valerij"]
[Site "St. Petersburg"]
[Round "10.47"]
[Annotator "ChessBase"]
[Result "1-0"]
[Date "2018.12.27"]
[WhiteElo "2670"]
[BlackElo "2532"]
[PlyCount "69"]
[TimeControl "900+10"]

1. d4 {[%emt 0:0:0]} d5 {[%emt 0:0:0]} 2. c4 {[%emt 0:0:0]} e6 {[%emt 0:0:0]} 3. Nf3 {[%emt 0:0:0]} Nd7 {[%emt 0:0:0]} 4. Nc3 {[%emt 0:0:12]} Ngf6 {[%emt 0:0:2]} 5. Qc2 {[%emt 0:0:20]} dxc4 {[%emt 0:1:19]} 6. e4 {[%emt 0:0:7]
} c5 {[%emt 0:1:36]} 7. dxc5 {[%emt 0:2:20]} Bxc5 {[%emt 0:0:0]} 8. Bxc4 {[%emt 0:0:2]} a6 {[%emt 0:1:16]} 9. a4 {[%emt 0:3:22]} Qc7 {[%emt 0:0:2]
} 10. 0-0 {[%emt 0:1:12]} Ng4 {[%emt 0:2:58]} 11. Be2 {[%emt 0:0:0]} b6 {[%emt 0:0:55]} 12. Bg5 {[%emt 0:1:10]} Bb7 {[%emt 0:0:29]} 13. Rac1 {[%emt 0:0:25]} h6 {[%emt 0:2:9]} 14. Bh4 {[%emt 0:0:9]} Bd6 {[%emt 0:0:29]
} 15. h3 {[%emt 0:0:44]} Nh2 {[%emt 0:0:15]} 16. Nb5 {[%emt 0:0:0]} Nxf3+ {[%emt 0:0:2]} 17. Bxf3 {[%emt 0:0:1]} Bh2+ {[%emt 0:0:18]} 18. Kh1 {[%emt 0:0:1]} Qxc2 {[%emt 0:0:54]} 19. Rxc2 {[%emt 0:0:1]} axb5 {[%emt 0:0:3]
} 20. Kxh2 {[%emt 0:0:4]} bxa4 {[%emt 0:1:18]} 21. Rc7 {[%emt 0:0:2]
} Nc5 {[%emt 0:0:15]} 22. Rc1 {[%emt 0:1:1]} 0-0 {[%emt 0:0:0]} 23. Be7 {[%emt 0:0:2]} Rfc8 {[%emt 0:0:25]} 24. R1xc5 {[%emt 0:0:2]} bxc5 {[%emt 0:0:1]} 25. Rxb7 {[%emt 0:0:2]} Rcb8 {[%emt 0:0:0]} 26. Rc7 {[%emt 0:0:47]
} Rxb2 {[%emt 0:0:12]} 27. e5 {[%emt 0:0:2]} Rab8 {[%emt 0:0:0]} 28. Bd6 {[%emt 0:1:16]} Rxf2 {[%emt 0:0:19]} 29. Rxc5 {[%emt 0:0:47]} Rd8 {[%emt 0:0:13]} 30. Ra5 {[%emt 0:0:21]} Ra2 {[%emt 0:0:7]} 31. Ra7 {[%emt 0:0:29]
} g5 {[%emt 0:0:18]} 32. Bh5 {[%emt 0:0:15]} Rf2 {[%emt 0:0:0]} 33. Rxa4 {[%emt 0:0:6]} f6 {[%emt 0:0:17]} 34. Kg3 {[%emt 0:0:22]} Rc2 {[%emt 0:0:35]} 35. exf6 {[%emt 0:0:36]} 1-0